{"text_format":"1","workbook":"xlsx","n_sheets":6,"sheets":["Compaction Info","DV Readings","DV vs. Time Chart","Average DV & MC","RX","Revisions"],"not_rendered":{"charts":4,"images":1,"macros":1,"external_links":0,"defined_names":442,"comments":1,"pivot_tables":0},"unopened":[{"sheet":"DV vs. Time Chart","index":2,"reason":"not_a_worksheet"},{"sheet":"Average DV & MC","index":3,"reason":"not_a_worksheet"}],"bounds":{"document_bytes":16777216,"sheet_cells":100000,"rows_first":2000,"rows_last":500,"rows_between":2000,"halvings":0,"cell_chars":16384,"cell_head_chars":4096},"cells_cut":0,"cells_raw":0,"read":"whole","date_system":"1900"}

{"sheet":"Compaction Info","index":0,"n_rows":58,"n_cols":11,"rows_kept":58,"cut":false,"hidden":false,"merged":[[0,0,0,1],[7,7,7,8],[10,7,10,8],[7,3,7,4],[8,3,8,4],[8,7,8,8],[10,3,10,4],[9,7,9,8],[9,3,9,4],[12,7,12,8],[11,3,11,4],[12,3,12,4],[13,3,13,4],[54,1,54,3],[15,3,15,8],[13,7,13,8],[11,7,11,8],[16,3,16,4],[16,7,16,8],[52,2,52,4],[51,2,51,4],[14,3,14,8],[27,7,28,7],[22,1,22,2],[23,1,23,2],[27,6,28,6],[33,2,34,2],[39,1,40,1],[27,4,28,4],[27,5,28,5],[33,1,34,1],[27,3,28,3],[39,6,40,6],[33,3,34,3],[27,1,28,1],[27,2,28,2],[39,2,40,2],[39,3,40,3],[39,4,40,4],[58,1,58,3],[33,4,34,4],[33,5,34,5],[33,6,34,6],[54,6,54,8],[47,1,48,8],[33,7,34,7],[39,5,40,5],[49,2,49,4],[50,2,50,4],[20,1,20,3],[23,5,23,7],[24,5,24,7],[25,5,25,7],[21,1,21,2],[21,5,21,7],[22,5,22,7]]}
["TxDOT Manuals >"]
[null,"TEXAS DEPARTMENT OF TRANSPORTATION",null,null,null,null,null,null,null,null,188]
[null,null,null,null,null,null,null,null,null,null,2]
[null,null,null,null,null,null,null,null,null,null,"tx144-14.xlsm::45505.688993"]
[null,"TUBE SUCTION TEST: COMPACTION INFO"]
[null,"Tex-144-E"]
[null,null,null,null,null,null,null,null,{"$f":"\"Tex-144-E :: File Version: \" & TEXT(MID(sn,SEARCH(\"::\",sn,1)+2,20),\"mm/dd/yy hh:mm:ss\")","v":"Tex-144-E :: File Version: 08/01/24 16:32:09"}]
[null,null,"SAMPLE ID:",null,null,null,"SAMPLED DATE:"]
[null,null,"TEST NUMBER:",null,null,null,"LETTING DATE:"]
[null,null,"SAMPLE STATUS:",null,null,null,"CONTROLLING CSJ:"]
[null,null,"COUNTY:",null,null,null,"SPEC YEAR:"]
[null,null,"SAMPLED BY:",null,null,null,"SPEC ITEM:"]
[null,null,"SAMPLE LOCATION:",null,null,null,"SPECIAL PROVISION:"]
[null,null,"MATERIAL CODE:",null,null,null,"GRADE:"]
[null,null,"MATERIAL NAME:"]
[null,null,"PRODUCER:"]
[null,null,"AREA ENGINEER:",null,null,null,"PROJECT MANAGER:"]
[]
[null,null,"COURSE\\LIFT:",null,"STATION:",null,null,"DIST. FROM CL:"]
[]
[null,"Moisture-Density Data"]
[null,"Maximum Dry Density, pcf:",null,null,null,"Mass of Mold, lb:"]
[null,"Optimum Moisture Content, %:",null,null,null,"Volume of Mold per Linear Inch, ft3/in:"]
[null,"Hygroscopic Moisture Content (%):",null,null,null,"Mass of Material per Specimen, lb:",null,null,{"$f":"IF(OR(maxdrydensity=\"\",moldvolperlinearinch=\"\"),\"\",(maxdrydensity*(8*moldvolperlinearinch))*(1+(hygmoistcontent/100)))","v":""}]
[null,null,null,null,null,"Mass of Water per Specimen, lb:",null,null,{"$f":"IF(optimoistcontent=\"\",\"\",maxdrydensity*(8*moldvolperlinearinch)*((optimoistcontent-hygmoistcontent)/100))","v":""}]
[null,null,null,null,null,"Volume of Water per Specimen, ml:",null,null,{"$f":"IF(watmassperspec=\"\",\"\",453.6*watmassperspec)","v":""}]
[]
[null,"Specimen \nNo.","WTOTAL,\nlb","Wt. of Moist\nSpecimen, lb","Height, \nin","Specimen Diameter, \nin","Wet\nDensity, \npcf","Dry \nDensity, \npcf"]
[]
[null,1,null,{"$f":"IF(OR(moldmass=\"\",wtotal1=\"\"),\"\",wtotal1-moldmass)","v":""},null,{"$f":"IF(AND(wtotal1=\"\",spec1height=\"\"),\"\",6)","v":""},{"$f":"IF(OR(spec1moistweight=\"\",spec1height=\"\",moldvolperlinearinch=\"\"),\"\",spec1moistweight/(spec1height*moldvolperlinearinch))","v":""},{"$f":"IF(OR(spec1mcfinal=\"\", spec1wetdensity=\"\"),\"\",spec1wetdensity/(1+spec1mcfinal/100))","v":""}]
[null,2,null,{"$f":"IF(OR(moldmass=\"\",wtotal2=\"\"),\"\",wtotal2-moldmass)","v":""},null,{"$f":"IF(AND(wtotal2=\"\",spec2height=\"\"),\"\",6)","v":""},{"$f":"IF(OR(spec2moistweight=\"\",spec2height=\"\",moldvolperlinearinch=\"\"),\"\",spec2moistweight/(spec2height*moldvolperlinearinch))","v":""},{"$f":"IF(OR(spec2mcfinal=\"\", spec2wetdensity=\"\"),\"\",spec2wetdensity/(1+spec2mcfinal/100))","v":""}]
[null,3,null,{"$f":"IF(OR(moldmass=\"\",wtotal3=\"\"),\"\",wtotal3-moldmass)","v":""},null,{"$f":"IF(AND(wtotal3=\"\",spec3height=\"\"),\"\",6)","v":""},{"$f":"IF(OR(spec3moistweight=\"\",spec3height=\"\",moldvolperlinearinch=\"\"),\"\",spec3moistweight/(spec3height*moldvolperlinearinch))","v":""},{"$f":"IF(OR(spec3mcfinal=\"\", spec3wetdensity=\"\"),\"\",spec3wetdensity/(1+spec3mcfinal/100))","v":""}]
[]
[null,null,"Weight of Two Dry  Stones \nWSTONES, lb","Weight After Molding \n+ WSTONES, lb","Weight After 48 hr of Drying \n+ WSTONES, lb","At \nConclusion \nof Test \nWWET + Pan, lb","At \nConclusion \nof Test \nWDRY + Pan, lb","At \nConclusion \nof Test \nPan, lb"]
[]
[]
[]
[]
[]
[null,null,"MCCOMPACT, %","MCINITIAL, %","MCFINAL, %","DVINITIAL","DVFINAL"]
[]
[null,null,{"$f":"IF(OR(spec1drystones=\"\",spec1waftermolding=\"\",spec1wdrypan=\"\",spec1concltestpan=\"\"),\"\",((spec1waftermolding-spec1drystones)-(spec1wdrypan-spec1concltestpan))/(spec1wdrypan-spec1concltestpan)*100)","v":""},{"$f":"IF(OR(spec1drystones=\"\",spec1dryingstones=\"\",spec1wdrypan=\"\",spec1concltestpan=\"\"),\"\",(((spec1dryingstones-spec1drystones-spec1wdrypan+spec1concltestpan)/(spec1wdrypan-spec1concltestpan))*100))","v":""},{"$f":"IF(OR(spec1wwetpan=\"\",spec1wdrypan=\"\",spec1concltestpan=\"\"),\"\",((spec1wwetpan-spec1wdrypan)/(spec1wdrypan-spec1concltestpan)*100))","v":""},{"$f":"IF(day1read1=\"\",\"\",'DV Readings'!H25)","v":""},{"$f":"IF(OR(averageday8=\"\",averageday9=\"\",averageday10=\"\"),\"\",spec1average)","v":""}]
[null,null,{"$f":"IF(OR(spec2drystones=\"\",spec2waftermolding=\"\",spec2wdrypan=\"\",spec2concltestpan=\"\"),\"\",((spec2waftermolding-spec2drystones)-(spec2wdrypan-spec2concltestpan))/(spec2wdrypan-spec2concltestpan)*100)","v":""},{"$f":"IF(OR(spec2drystones=\"\",spec2dryingstones=\"\",spec2wdrypan=\"\",spec2concltestpan=\"\"),\"\",(((spec2dryingstones-spec2drystones-spec2wdrypan+spec2concltestpan)/(spec2wdrypan-spec2concltestpan))*100))","v":""},{"$f":"IF(OR(spec2wwetpan=\"\",spec2wdrypan=\"\",spec2concltestpan=\"\"),\"\",((spec2wwetpan-spec2wdrypan)/(spec2wdrypan-spec2concltestpan)*100))","v":""},{"$f":"IF(spec2day1read1=\"\",\"\",'DV Readings'!H41)","v":""},{"$f":"IF(OR(spec2averageday8=\"\",spec2averageday9=\"\",spec2averageday10=\"\"),\"\",spec2average)","v":""}]
[null,null,{"$f":"IF(OR(spec3drystones=\"\",spec3waftermolding=\"\",spec3wdrypan=\"\",spec3concltestpan=\"\"),\"\",((spec3waftermolding-spec3drystones)-(spec3wdrypan-spec3concltestpan))/(spec3wdrypan-spec3concltestpan)*100)","v":""},{"$f":"IF(OR(spec3drystones=\"\",spec3dryingstones=\"\",spec3wdrypan=\"\",spec3concltestpan=\"\"),\"\",(((spec3dryingstones-spec3drystones-spec3wdrypan+spec3concltestpan)/(spec3wdrypan-spec3concltestpan))*100))","v":""},{"$f":"IF(OR(spec3wwetpan=\"\",spec3wdrypan=\"\",spec3concltestpan=\"\"),\"\",((spec3wwetpan-spec3wdrypan)/(spec3wdrypan-spec3concltestpan)*100))","v":""},{"$f":"IF(spec3day1read1=\"\",\"\",'DV Readings'!H57)","v":""},{"$f":"IF(OR(spec3averageday8=\"\",spec3averageday9=\"\",spec3averageday10=\"\"),\"\",spec3average)","v":""}]
[null,"Average",{"$f":"IF(C42=\"\",\"\",AVERAGE(C42:C44))","v":""},{"$f":"IF(D42=\"\",\"\",AVERAGE(D42:D44))","v":""},{"$f":"IF(E42=\"\",\"\",AVERAGE(E42:E44))","v":""},{"$f":"IF(F42=\"\",\"\",AVERAGE(F42:F44))","v":""},{"$f":"IF(G42=\"\",\"\",AVERAGE(G42:G44))","v":""}]
[]
[null,"Remarks:",{"$f":"NOW()","v":"2024-08-01T16:32:09.110"}]
[]
[]
[null,"Sample Method:","Sampled By:",null,null,"Sampled Date:"]
[null,"TX400"]
[null,"Test Method:","Tested By:",null,null,"Tested Date:"]
[null,"TX144"]
[null,"Test Stamp Code:",null,null,"Omit Test:","Completed Date:","Reviewed By:"]
[]
[null,"Locked By:","TxDOT:","District:","Area:"]
[]
[null,"Authorized By:",null,null,"Authorized Date:"]

{"sheet":"DV Readings","index":1,"n_rows":67,"n_cols":13,"rows_kept":67,"cut":false,"hidden":false,"merged":[[9,3,9,4],[9,7,9,8],[0,0,0,1],[7,3,7,4],[7,7,7,8],[8,3,8,4],[8,7,8,8],[10,3,10,4],[10,7,10,8],[11,3,11,4],[11,7,11,8],[12,3,12,4],[12,7,12,8],[13,3,13,4],[13,7,13,8],[14,3,14,8],[15,3,15,8],[16,3,16,4],[16,7,16,8],[47,7,47,8],[29,7,29,8],[21,1,21,8],[22,2,22,6],[22,1,23,1],[41,7,41,8],[30,7,30,8],[22,7,23,8],[24,7,24,8],[25,7,25,8],[26,7,26,8],[27,7,27,8],[28,7,28,8],[57,7,57,8],[50,7,50,8],[31,7,31,8],[32,7,32,8],[33,7,33,8],[34,7,34,8],[37,1,37,8],[38,1,39,1],[38,2,38,6],[38,7,39,8],[40,7,40,8],[42,7,42,8],[43,7,43,8],[44,7,44,8],[45,7,45,8],[46,7,46,8],[58,7,58,8],[48,7,48,8],[49,7,49,8],[65,7,65,8],[66,7,66,8],[53,1,53,8],[54,1,55,1],[54,2,54,6],[54,7,55,8],[56,7,56,8],[59,7,59,8],[60,7,60,8],[61,7,61,8],[62,7,62,8],[63,7,63,8],[64,7,64,8]]}
["TxDOT Manuals >"]
[null,"TEXAS DEPARTMENT OF TRANSPORTATION",null,null,null,null,null,null,null,null,5]
[null,null,null,null,null,null,null,null,null,null,1]
[null,null,null,null,null,null,null,null,null,null,"BlankTemplate.xlsm::42887.399225"]
[null,"TUBE SUCTION TEST: DV READINGS"]
[null,"Tex-144-E"]
[]
[null,null,"SAMPLE ID:",{"$f":"IF(SampleId=\"\",\"\",SampleId)","v":""},null,null,"SAMPLED DATE:",{"$f":"IF(SampledDate=\"\",\"\",SampledDate)","v":""}]
[null,null,"TEST NUMBER:",{"$f":"IF(TestNumber=\"\",\"\",TestNumber)","v":""},null,null,"LETTING DATE:",{"$f":"IF(LettingDate=\"\",\"\",LettingDate)","v":""}]
[null,null,"SAMPLE STATUS:",{"$f":"IF(Status=\"\",\"\",Status)","v":""},null,null,"CONTROLLING CSJ:",{"$f":"IF(CCSJ=\"\",\"\",CCSJ)","v":""}]
[null,null,"COUNTY:",{"$f":"IF(County=\"\",\"\",County)","v":""},null,null,"SPEC YEAR:",{"$f":"IF(SpecYear=\"\",\"\",SpecYear)","v":""}]
[null,null,"SAMPLED BY:",{"$f":"IF(SampledBy=\"\",\"\",SampledBy)","v":""},null,null,"SPEC ITEM:",{"$f":"IF(SpecItem=\"\",\"\",SpecItem)","v":""}]
[null,null,"SAMPLE LOCATION:",{"$f":"IF(SampleLocation=\"\",\"\",SampleLocation)","v":""},null,null,"SPECIAL PROVISION:",{"$f":"IF(SpecialProvision=\"\",\"\",SpecialProvision)","v":""}]
[null,null,"MATERIAL CODE:",{"$f":"IF(Material=\"\",\"\",Material)","v":""},null,null,"GRADE:",{"$f":"IF(Grade=\"\",\"\",Grade)","v":""}]
[null,null,"MATERIAL NAME:",{"$f":"IF(matl_nm=\"\",\"\",matl_nm)","v":""}]
[null,null,"PRODUCER:",{"$f":"IF(Producer=\"\",\"\",Producer)","v":""}]
[null,null,"AREA ENGINEER:",{"$f":"IF(AreaEngineer=\"\",\"\",AreaEngineer)","v":""},null,null,"PROJECT MANAGER:",{"$f":"IF(ProjectManager=\"\",\"\",ProjectManager)","v":""}]
[]
[null,null,"COURSE\\LIFT:",{"$f":"IF(CourseLift=\"\",\"\",CourseLift)","v":""},"STATION:",{"$f":"IF(Station=\"\",\"\",Station)","v":""},null,"DIST. FROM CL:",{"$f":"IF(DistFromCL=\"\",\"\",DistFromCL)","v":""}]
[]
[]
[null,"Report - Specimen # 1"]
[null,"Day No.","Reading",null,null,null,null,"Average"]
[null,null,1,2,3,4,5]
[null,1,null,null,null,null,null,{"$f":"IF(day1read1=\"\",\"\",AVERAGE(C25:G25))","v":""}]
[null,2,null,null,null,null,null,{"$f":"IF(day2read1=\"\",\"\",AVERAGE(C26:G26))","v":""}]
[null,3,null,null,null,null,null,{"$f":"IF(day3read1=\"\",\"\",AVERAGE(C27:G27))","v":""}]
[null,4,null,null,null,null,null,{"$f":"IF(day4read1=\"\",\"\",AVERAGE(C28:G28))","v":""}]
[null,5,null,null,null,null,null,{"$f":"IF(day5read1=\"\",\"\",AVERAGE(C29:G29))","v":""}]
[null,6,null,null,null,null,null,{"$f":"IF(day6read1=\"\",\"\",AVERAGE(C30:G30))","v":""}]
[null,7,null,null,null,null,null,{"$f":"IF(day7read1=\"\",\"\",AVERAGE(C31:G31))","v":""}]
[null,8,null,null,null,null,null,{"$f":"IF(day8read1=\"\",\"\",AVERAGE(C32:G32))","v":""}]
[null,9,null,null,null,null,null,{"$f":"IF(day9read1=\"\",\"\",AVERAGE(C33:G33))","v":""}]
[null,10,null,null,null,null,null,{"$f":"IF(day10read1=\"\",\"\",AVERAGE(C34:G34))","v":""}]
[null,null,null,null,null,null,null,{"$f":"IF(ISERROR(AVERAGE(averageday8,averageday9,averageday10)),\"\",AVERAGE(averageday8,averageday9,averageday10))","v":""}]
[]
[]
[null,"Report - Specimen # 2"]
[null,"Day No.","Reading",null,null,null,null,"Average"]
[null,null,1,2,3,4,5]
[null,1,null,null,null,null,null,{"$f":"IF(spec2day1read1=\"\",\"\",AVERAGE(C41:G41))","v":""}]
[null,2,null,null,null,null,null,{"$f":"IF(spec2day2read1=\"\",\"\",AVERAGE(C42:G42))","v":""}]
[null,3,null,null,null,null,null,{"$f":"IF(spec2day3read1=\"\",\"\",AVERAGE(C43:G43))","v":""}]
[null,4,null,null,null,null,null,{"$f":"IF(spec2day4read1=\"\",\"\",AVERAGE(C44:G44))","v":""}]
[null,5,null,null,null,null,null,{"$f":"IF(spec2day5read1=\"\",\"\",AVERAGE(C45:G45))","v":""}]
[null,6,null,null,null,null,null,{"$f":"IF(spec2day6read1=\"\",\"\",AVERAGE(C46:G46))","v":""}]
[null,7,null,null,null,null,null,{"$f":"IF(spec2day7read1=\"\",\"\",AVERAGE(C47:G47))","v":""}]
[null,8,null,null,null,null,null,{"$f":"IF(spec2day8read1=\"\",\"\",AVERAGE(C48:G48))","v":""}]
[null,9,null,null,null,null,null,{"$f":"IF(spec2day9read1=\"\",\"\",AVERAGE(C49:G49))","v":""}]
[null,10,null,null,null,null,null,{"$f":"IF(spec2day10read1=\"\",\"\",AVERAGE(C50:G50))","v":""}]
[null,null,null,null,null,null,null,{"$f":"IF(ISERROR(AVERAGE(spec2averageday8,spec2averageday9,spec2averageday10)),\"\",AVERAGE(spec2averageday8,spec2averageday9,spec2averageday10))","v":""}]
[]
[]
[null,"Report - Specimen # 3"]
[null,"Day No.","Reading",null,null,null,null,"Average"]
[null,null,1,2,3,4,5]
[null,1,null,null,null,null,null,{"$f":"IF(spec3day1read1=\"\",\"\",AVERAGE(C57:G57))","v":""}]
[null,2,null,null,null,null,null,{"$f":"IF(spec3day2read1=\"\",\"\",AVERAGE(C58:G58))","v":""}]
[null,3,null,null,null,null,null,{"$f":"IF(spec3day3read1=\"\",\"\",AVERAGE(C59:G59))","v":""}]
[null,4,null,null,null,null,null,{"$f":"IF(spec3day4read1=\"\",\"\",AVERAGE(C60:G60))","v":""}]
[null,5,null,null,null,null,null,{"$f":"IF(spec3day5read1=\"\",\"\",AVERAGE(C61:G61))","v":""}]
[null,6,null,null,null,null,null,{"$f":"IF(spec3day6read1=\"\",\"\",AVERAGE(C62:G62))","v":""},null,null,null,null,"`"]
[null,7,null,null,null,null,null,{"$f":"IF(spec3day7read1=\"\",\"\",AVERAGE(C63:G63))","v":""}]
[null,8,null,null,null,null,null,{"$f":"IF(spec3day8read1=\"\",\"\",AVERAGE(C64:G64))","v":""}]
[null,9,null,null,null,null,null,{"$f":"IF(spec3day9read1=\"\",\"\",AVERAGE(C65:G65))","v":""}]
[null,10,null,null,null,null,null,{"$f":"IF(spec3day10read1=\"\",\"\",AVERAGE(C66:G66))","v":""}]
[null,null,null,null,null,null,null,{"$f":"IF(ISERROR(AVERAGE(spec3averageday8,spec3averageday9,spec3averageday10)),\"\",AVERAGE(spec3averageday8,spec3averageday9,spec3averageday10))","v":""}]

{"sheet":"RX","index":4,"n_rows":249,"n_cols":9,"rows_kept":249,"cut":false,"hidden":true,"merged":[]}
[{"$f":"COUNT(A3:A1048576)","v":247}]
["Fld_nbr","Value","Desc_1","Desc_2","Desc_3","Desc_4","Desc_5","Desc_6","Desc_7"]
[1,{"$f":"IF('Compaction Info'!B48=\"\",\"\",'Compaction Info'!B48)","v":""},{"$f":"'Compaction Info'!B47","v":"Remarks:"}]
[2,{"$f":"IF(TestPerson1=\"\",\"\",TestPerson1)","v":""},{"$f":"'Compaction Info'!C52","v":"Tested By:"},{"$f":"test1","v":"TX144"}]
[3,{"$f":"IF(TestDate1=\"\",\"\",TestDate1)","v":""},{"$f":"'Compaction Info'!F52","v":"Tested Date:"},{"$f":"test1","v":"TX144"}]
[4,{"$f":"IF(maxdrydensity=\"\",\"\",maxdrydensity)","v":""},"TUBE SUCTION TEST: COMPACTION INFO",{"$f":"'Compaction Info'!B21","v":"Moisture-Density Data"},{"$f":"'Compaction Info'!B22","v":"Maximum Dry Density, pcf:"}]
[5,{"$f":"IF(optimoistcontent=\"\",\"\",optimoistcontent)","v":""},"TUBE SUCTION TEST: COMPACTION INFO",{"$f":"'Compaction Info'!B21","v":"Moisture-Density Data"},{"$f":"'Compaction Info'!B23","v":"Optimum Moisture Content, %:"}]
[6,{"$f":"IF(hygmoistcontent=\"\",\"\",hygmoistcontent)","v":""},"TUBE SUCTION TEST: COMPACTION INFO",{"$f":"'Compaction Info'!B21","v":"Moisture-Density Data"},{"$f":"'Compaction Info'!B24","v":"Hygroscopic Moisture Content (%):"}]
[7,{"$f":"IF(moldmass=\"\",\"\",moldmass)","v":""},"TUBE SUCTION TEST: COMPACTION INFO",{"$f":"'Compaction Info'!F22","v":"Mass of Mold, lb:"}]
[8,{"$f":"IF(moldvolperlinearinch=\"\",\"\",moldvolperlinearinch)","v":""},"TUBE SUCTION TEST: COMPACTION INFO",{"$f":"'Compaction Info'!F23","v":"Volume of Mold per Linear Inch, ft3/in:"}]
[9,{"$f":"IF(massperspec=\"\",\"\",massperspec)","v":""},"TUBE SUCTION TEST: COMPACTION INFO",{"$f":"'Compaction Info'!F24","v":"Mass of Material per Specimen, lb:"}]
[10,{"$f":"IF(watmassperspec=\"\",\"\",watmassperspec)","v":""},"TUBE SUCTION TEST: COMPACTION INFO",{"$f":"'Compaction Info'!F25","v":"Mass of Water per Specimen, lb:"}]
[11,{"$f":"'Compaction Info'!I26","v":""},"TUBE SUCTION TEST: COMPACTION INFO",{"$f":"'Compaction Info'!F26","v":"Volume of Water per Specimen, ml:"}]
[12,{"$f":"IF('Compaction Info'!$C$30=\"\",\"\",'Compaction Info'!$C$30)","v":""},"TUBE SUCTION TEST: COMPACTION INFO",{"$f":"'Compaction Info'!C28","v":"WTOTAL,\nlb"},"Specimen No.",1]
[13,{"$f":"IF('Compaction Info'!$C$31=\"\",\"\",'Compaction Info'!$C$31)","v":""},"TUBE SUCTION TEST: COMPACTION INFO",{"$f":"'Compaction Info'!C28","v":"WTOTAL,\nlb"},"Specimen No.",2]
[14,{"$f":"IF('Compaction Info'!$C$32=\"\",\"\",'Compaction Info'!$C$32)","v":""},"TUBE SUCTION TEST: COMPACTION INFO",{"$f":"'Compaction Info'!C28","v":"WTOTAL,\nlb"},"Specimen No.",3]
[15,{"$f":"IF('Compaction Info'!$D$30=\"\",\"\",'Compaction Info'!$D$30)","v":""},"TUBE SUCTION TEST: COMPACTION INFO",{"$f":"'Compaction Info'!D28","v":"Wt. of Moist\nSpecimen, lb"},"Specimen No.",1]
[16,{"$f":"IF('Compaction Info'!$D$31=\"\",\"\",'Compaction Info'!$D$31)","v":""},"TUBE SUCTION TEST: COMPACTION INFO",{"$f":"'Compaction Info'!D28","v":"Wt. of Moist\nSpecimen, lb"},"Specimen No.",2]
[17,{"$f":"IF('Compaction Info'!$D$32=\"\",\"\",'Compaction Info'!$D$32)","v":""},"TUBE SUCTION TEST: COMPACTION INFO",{"$f":"'Compaction Info'!D28","v":"Wt. of Moist\nSpecimen, lb"},"Specimen No.",3]
[18,{"$f":"IF('Compaction Info'!$E$30=\"\",\"\",'Compaction Info'!$E$30)","v":""},"TUBE SUCTION TEST: COMPACTION INFO",{"$f":"'Compaction Info'!E28","v":"Height, \nin"},"Specimen No.",1]
[19,{"$f":"IF('Compaction Info'!$E$31=\"\",\"\",'Compaction Info'!$E$31)","v":""},"TUBE SUCTION TEST: COMPACTION INFO",{"$f":"'Compaction Info'!E28","v":"Height, \nin"},"Specimen No.",2]
[20,{"$f":"IF('Compaction Info'!$E$32=\"\",\"\",'Compaction Info'!$E$32)","v":""},"TUBE SUCTION TEST: COMPACTION INFO",{"$f":"'Compaction Info'!E28","v":"Height, \nin"},"Specimen No.",3]
[21,{"$f":"IF('Compaction Info'!$F$30=\"\",\"\",'Compaction Info'!$F$30)","v":""},"TUBE SUCTION TEST: COMPACTION INFO",{"$f":"'Compaction Info'!F28","v":"Specimen Diameter, \nin"},"Specimen No.",1]
[22,{"$f":"IF('Compaction Info'!$F$31=\"\",\"\",'Compaction Info'!$F$31)","v":""},"TUBE SUCTION TEST: COMPACTION INFO",{"$f":"'Compaction Info'!F28","v":"Specimen Diameter, \nin"},"Specimen No.",2]
[23,{"$f":"IF('Compaction Info'!$F$32=\"\",\"\",'Compaction Info'!$F$32)","v":""},"TUBE SUCTION TEST: COMPACTION INFO",{"$f":"'Compaction Info'!F28","v":"Specimen Diameter, \nin"},"Specimen No.",3]
[24,{"$f":"IF('Compaction Info'!$G$30=\"\",\"\",'Compaction Info'!$G$30)","v":""},"TUBE SUCTION TEST: COMPACTION INFO",{"$f":"'Compaction Info'!G28","v":"Wet\nDensity, \npcf"},"Specimen No.",1]
[25,{"$f":"IF('Compaction Info'!$G$31=\"\",\"\",'Compaction Info'!$G$31)","v":""},"TUBE SUCTION TEST: COMPACTION INFO",{"$f":"'Compaction Info'!G28","v":"Wet\nDensity, \npcf"},"Specimen No.",2]
[26,{"$f":"IF('Compaction Info'!$G$32=\"\",\"\",'Compaction Info'!$G$32)","v":""},"TUBE SUCTION TEST: COMPACTION INFO",{"$f":"'Compaction Info'!G28","v":"Wet\nDensity, \npcf"},"Specimen No.",3]
[27,{"$f":"IF('Compaction Info'!$H$30=\"\",\"\",'Compaction Info'!$H$30)","v":""},"TUBE SUCTION TEST: COMPACTION INFO",{"$f":"'Compaction Info'!H28","v":"Dry \nDensity, \npcf"},"Specimen No.",1]
[28,{"$f":"IF('Compaction Info'!$H$31=\"\",\"\",'Compaction Info'!$H$31)","v":""},"TUBE SUCTION TEST: COMPACTION INFO",{"$f":"'Compaction Info'!H28","v":"Dry \nDensity, \npcf"},"Specimen No.",2]
[29,{"$f":"IF('Compaction Info'!$H$32=\"\",\"\",'Compaction Info'!$H$32)","v":""},"TUBE SUCTION TEST: COMPACTION INFO",{"$f":"'Compaction Info'!H28","v":"Dry \nDensity, \npcf"},"Specimen No.",3]
[30,{"$f":"IF('Compaction Info'!$C$36=\"\",\"\",'Compaction Info'!$C$36)","v":""},"TUBE SUCTION TEST: COMPACTION INFO",{"$f":"'Compaction Info'!C34","v":"Weight of Two Dry  Stones \nWSTONES, lb"},"Specimen No.",1]
[31,{"$f":"IF('Compaction Info'!$C$37=\"\",\"\",'Compaction Info'!$C$37)","v":""},"TUBE SUCTION TEST: COMPACTION INFO",{"$f":"'Compaction Info'!C34","v":"Weight of Two Dry  Stones \nWSTONES, lb"},"Specimen No.",2]
[32,{"$f":"IF('Compaction Info'!$C$38=\"\",\"\",'Compaction Info'!$C$38)","v":""},"TUBE SUCTION TEST: COMPACTION INFO",{"$f":"'Compaction Info'!C34","v":"Weight of Two Dry  Stones \nWSTONES, lb"},"Specimen No.",3]
[33,{"$f":"IF('Compaction Info'!$D$36=\"\",\"\",'Compaction Info'!$D$36)","v":""},"TUBE SUCTION TEST: COMPACTION INFO",{"$f":"'Compaction Info'!D34","v":"Weight After Molding \n+ WSTONES, lb"},"Specimen No.",1]
[34,{"$f":"IF('Compaction Info'!$D$37=\"\",\"\",'Compaction Info'!$D$37)","v":""},"TUBE SUCTION TEST: COMPACTION INFO",{"$f":"'Compaction Info'!D34","v":"Weight After Molding \n+ WSTONES, lb"},"Specimen No.",2]
[35,{"$f":"IF('Compaction Info'!$D$38=\"\",\"\",'Compaction Info'!$D$38)","v":""},"TUBE SUCTION TEST: COMPACTION INFO",{"$f":"'Compaction Info'!D34","v":"Weight After Molding \n+ WSTONES, lb"},"Specimen No.",3]
[36,{"$f":"IF('Compaction Info'!$E$36=\"\",\"\",'Compaction Info'!$E$36)","v":""},"TUBE SUCTION TEST: COMPACTION INFO",{"$f":"'Compaction Info'!E34","v":"Weight After 48 hr of Drying \n+ WSTONES, lb"},"Specimen No.",1]
[37,{"$f":"IF('Compaction Info'!$E$37=\"\",\"\",'Compaction Info'!$E$37)","v":""},"TUBE SUCTION TEST: COMPACTION INFO",{"$f":"'Compaction Info'!E34","v":"Weight After 48 hr of Drying \n+ WSTONES, lb"},"Specimen No.",2]
[38,{"$f":"IF('Compaction Info'!$E$38=\"\",\"\",'Compaction Info'!$E$38)","v":""},"TUBE SUCTION TEST: COMPACTION INFO",{"$f":"'Compaction Info'!E34","v":"Weight After 48 hr of Drying \n+ WSTONES, lb"},"Specimen No.",3]
[39,{"$f":"IF('Compaction Info'!$F$36=\"\",\"\",'Compaction Info'!$F$36)","v":""},"TUBE SUCTION TEST: COMPACTION INFO",{"$f":"'Compaction Info'!F34","v":"At \nConclusion \nof Test \nWWET + Pan, lb"},"Specimen No.",1]
[40,{"$f":"IF('Compaction Info'!$F$37=\"\",\"\",'Compaction Info'!$F$37)","v":""},"TUBE SUCTION TEST: COMPACTION INFO",{"$f":"'Compaction Info'!F34","v":"At \nConclusion \nof Test \nWWET + Pan, lb"},"Specimen No.",2]
[41,{"$f":"IF('Compaction Info'!$F$38=\"\",\"\",'Compaction Info'!$F$38)","v":""},"TUBE SUCTION TEST: COMPACTION INFO",{"$f":"'Compaction Info'!F34","v":"At \nConclusion \nof Test \nWWET + Pan, lb"},"Specimen No.",3]
[42,{"$f":"IF('Compaction Info'!$G$36=\"\",\"\",'Compaction Info'!$G$36)","v":""},"TUBE SUCTION TEST: COMPACTION INFO",{"$f":"'Compaction Info'!G34","v":"At \nConclusion \nof Test \nWDRY + Pan, lb"},"Specimen No.",1]
[43,{"$f":"IF('Compaction Info'!$G$37=\"\",\"\",'Compaction Info'!$G$37)","v":""},"TUBE SUCTION TEST: COMPACTION INFO",{"$f":"'Compaction Info'!G34","v":"At \nConclusion \nof Test \nWDRY + Pan, lb"},"Specimen No.",2]
[44,{"$f":"IF('Compaction Info'!$G$38=\"\",\"\",'Compaction Info'!$G$38)","v":""},"TUBE SUCTION TEST: COMPACTION INFO",{"$f":"'Compaction Info'!G34","v":"At \nConclusion \nof Test \nWDRY + Pan, lb"},"Specimen No.",3]
[45,{"$f":"IF('Compaction Info'!$H$36=\"\",\"\",'Compaction Info'!$H$36)","v":""},"TUBE SUCTION TEST: COMPACTION INFO",{"$f":"'Compaction Info'!H34","v":"At \nConclusion \nof Test \nPan, lb"},"Specimen No.",1]
[46,{"$f":"IF('Compaction Info'!$H$37=\"\",\"\",'Compaction Info'!$H$37)","v":""},"TUBE SUCTION TEST: COMPACTION INFO",{"$f":"'Compaction Info'!H34","v":"At \nConclusion \nof Test \nPan, lb"},"Specimen No.",2]
[47,{"$f":"IF('Compaction Info'!$H$38=\"\",\"\",'Compaction Info'!$H$38)","v":""},"TUBE SUCTION TEST: COMPACTION INFO",{"$f":"'Compaction Info'!H34","v":"At \nConclusion \nof Test \nPan, lb"},"Specimen No.",3]
[48,{"$f":"IF('Compaction Info'!$C$42=\"\",\"\",'Compaction Info'!$C$42)","v":""},"TUBE SUCTION TEST: COMPACTION INFO",{"$f":"'Compaction Info'!C40","v":"MCCOMPACT, %"},"Specimen No.",1]
[49,{"$f":"IF('Compaction Info'!$C$43=\"\",\"\",'Compaction Info'!$C$43)","v":""},"TUBE SUCTION TEST: COMPACTION INFO",{"$f":"'Compaction Info'!C40","v":"MCCOMPACT, %"},"Specimen No.",2]
[50,{"$f":"IF('Compaction Info'!$C$44=\"\",\"\",'Compaction Info'!$C$44)","v":""},"TUBE SUCTION TEST: COMPACTION INFO",{"$f":"'Compaction Info'!C40","v":"MCCOMPACT, %"},"Specimen No.",3]
[51,{"$f":"IF('Compaction Info'!$D$42=\"\",\"\",'Compaction Info'!$D$42)","v":""},"TUBE SUCTION TEST: COMPACTION INFO",{"$f":"'Compaction Info'!D40","v":"MCINITIAL, %"},"Specimen No.",1]
[52,{"$f":"IF('Compaction Info'!$D$43=\"\",\"\",'Compaction Info'!$D$43)","v":""},"TUBE SUCTION TEST: COMPACTION INFO",{"$f":"'Compaction Info'!D40","v":"MCINITIAL, %"},"Specimen No.",2]
[53,{"$f":"IF('Compaction Info'!$D$44=\"\",\"\",'Compaction Info'!$D$44)","v":""},"TUBE SUCTION TEST: COMPACTION INFO",{"$f":"'Compaction Info'!D40","v":"MCINITIAL, %"},"Specimen No.",3]
[54,{"$f":"IF('Compaction Info'!$E$42=\"\",\"\",'Compaction Info'!$E$42)","v":""},"TUBE SUCTION TEST: COMPACTION INFO",{"$f":"'Compaction Info'!E40","v":"MCFINAL, %"},"Specimen No.",1]
[55,{"$f":"IF('Compaction Info'!$E$43=\"\",\"\",'Compaction Info'!$E$43)","v":""},"TUBE SUCTION TEST: COMPACTION INFO",{"$f":"'Compaction Info'!E40","v":"MCFINAL, %"},"Specimen No.",2]
[56,{"$f":"IF('Compaction Info'!$E$44=\"\",\"\",'Compaction Info'!$E$44)","v":""},"TUBE SUCTION TEST: COMPACTION INFO",{"$f":"'Compaction Info'!E40","v":"MCFINAL, %"},"Specimen No.",3]
[57,{"$f":"IF('Compaction Info'!$F$42=\"\",\"\",'Compaction Info'!$F$42)","v":""},"TUBE SUCTION TEST: COMPACTION INFO",{"$f":"'Compaction Info'!F40","v":"DVINITIAL"},"Specimen No.",1]
[58,{"$f":"IF('Compaction Info'!$F$43=\"\",\"\",'Compaction Info'!$F$43)","v":""},"TUBE SUCTION TEST: COMPACTION INFO",{"$f":"'Compaction Info'!F40","v":"DVINITIAL"},"Specimen No.",2]
[59,{"$f":"IF('Compaction Info'!$F$44=\"\",\"\",'Compaction Info'!$F$44)","v":""},"TUBE SUCTION TEST: COMPACTION INFO",{"$f":"'Compaction Info'!F40","v":"DVINITIAL"},"Specimen No.",3]
[60,{"$f":"IF('Compaction Info'!$G$42=\"\", \"\", 'Compaction Info'!$G$42)","v":""},"TUBE SUCTION TEST: COMPACTION INFO",{"$f":"'Compaction Info'!G40","v":"DVFINAL"},"Specimen No.",1]
[61,{"$f":"IF('Compaction Info'!$G$43=\"\",\"\",'Compaction Info'!$G$43)","v":""},"TUBE SUCTION TEST: COMPACTION INFO",{"$f":"'Compaction Info'!G40","v":"DVFINAL"},"Specimen No.",2]
[62,{"$f":"IF('Compaction Info'!$G$44=\"\",\"\",'Compaction Info'!$G$44)","v":""},"TUBE SUCTION TEST: COMPACTION INFO",{"$f":"'Compaction Info'!G40","v":"DVFINAL"},"Specimen No.",3]
[63,{"$f":"IF('DV Readings'!$C$25=\"\",\"\",'DV Readings'!$C$25)","v":""},"TUBE SUCTION TEST: DV READINGS","Report - Specimen # 1","Day No.",1,"Reading",1]
[64,{"$f":"IF('DV Readings'!$D$25=\"\",\"\",'DV Readings'!$D$25)","v":""},"TUBE SUCTION TEST: DV READINGS","Report - Specimen # 1","Day No.",1,"Reading",2]
[65,{"$f":"IF('DV Readings'!$E$25=\"\",\"\",'DV Readings'!$E$25)","v":""},"TUBE SUCTION TEST: DV READINGS","Report - Specimen # 1","Day No.",1,"Reading",3]
[66,{"$f":"IF('DV Readings'!$F$25=\"\",\"\",'DV Readings'!$F$25)","v":""},"TUBE SUCTION TEST: DV READINGS","Report - Specimen # 1","Day No.",1,"Reading",4]
[67,{"$f":"IF('DV Readings'!$G$25=\"\",\"\",'DV Readings'!$G$25)","v":""},"TUBE SUCTION TEST: DV READINGS","Report - Specimen # 1","Day No.",1,"Reading",5]
[68,{"$f":"IF('DV Readings'!$H$25=\"\",\"\",'DV Readings'!$H$25)","v":""},"TUBE SUCTION TEST: DV READINGS","Report - Specimen # 1","Day No.",1,"Average"]
[69,{"$f":"IF('DV Readings'!$C$26=\"\",\"\",'DV Readings'!$C$26)","v":""},"TUBE SUCTION TEST: DV READINGS","Report - Specimen # 1","Day No.",2,"Reading",1]
[70,{"$f":"IF('DV Readings'!$D$26=\"\",\"\",'DV Readings'!$D$26)","v":""},"TUBE SUCTION TEST: DV READINGS","Report - Specimen # 1","Day No.",2,"Reading",2]
[71,{"$f":"IF('DV Readings'!$E$26=\"\",\"\",'DV Readings'!$E$26)","v":""},"TUBE SUCTION TEST: DV READINGS","Report - Specimen # 1","Day No.",2,"Reading",3]
[72,{"$f":"IF('DV Readings'!$F$26=\"\",\"\",'DV Readings'!$F$26)","v":""},"TUBE SUCTION TEST: DV READINGS","Report - Specimen # 1","Day No.",2,"Reading",4]
[73,{"$f":"IF('DV Readings'!$G$26=\"\",\"\",'DV Readings'!$G$26)","v":""},"TUBE SUCTION TEST: DV READINGS","Report - Specimen # 1","Day No.",2,"Reading",5]
[74,{"$f":"IF('DV Readings'!$H$26=\"\",\"\",'DV Readings'!$H$26)","v":""},"TUBE SUCTION TEST: DV READINGS","Report - Specimen # 1","Day No.",2,"Average"]
[75,{"$f":"IF('DV Readings'!$C$27=\"\",\"\",'DV Readings'!$C$27)","v":""},"TUBE SUCTION TEST: DV READINGS","Report - Specimen # 1","Day No.",3,"Reading",1]
[76,{"$f":"IF('DV Readings'!$D$27=\"\",\"\",'DV Readings'!$D$27)","v":""},"TUBE SUCTION TEST: DV READINGS","Report - Specimen # 1","Day No.",3,"Reading",2]
[77,{"$f":"IF('DV Readings'!$E$27=\"\",\"\",'DV Readings'!$E$27)","v":""},"TUBE SUCTION TEST: DV READINGS","Report - Specimen # 1","Day No.",3,"Reading",3]
[78,{"$f":"IF('DV Readings'!$F$27=\"\",\"\",'DV Readings'!$F$27)","v":""},"TUBE SUCTION TEST: DV READINGS","Report - Specimen # 1","Day No.",3,"Reading",4]
[79,{"$f":"IF('DV Readings'!$G$27=\"\",\"\",'DV Readings'!$G$27)","v":""},"TUBE SUCTION TEST: DV READINGS","Report - Specimen # 1","Day No.",3,"Reading",5]
[80,{"$f":"IF('DV Readings'!$H$27=\"\",\"\",'DV Readings'!$H$27)","v":""},"TUBE SUCTION TEST: DV READINGS","Report - Specimen # 1","Day No.",3,"Average"]
[81,{"$f":"IF('DV Readings'!$C$28=\"\",\"\",'DV Readings'!$C$28)","v":""},"TUBE SUCTION TEST: DV READINGS","Report - Specimen # 1","Day No.",4,"Reading",{"$f":"IF('DV Readings'!$C$24=\"\",\"\",'DV Readings'!$C$24)","v":1}]
[82,{"$f":"IF('DV Readings'!$D$28=\"\",\"\",'DV Readings'!$D$28)","v":""},"TUBE SUCTION TEST: DV READINGS","Report - Specimen # 1","Day No.",4,"Reading",{"$f":"IF('DV Readings'!$D$24=\"\",\"\",'DV Readings'!$D$24)","v":2}]
[83,{"$f":"IF('DV Readings'!$E$28=\"\",\"\",'DV Readings'!$E$28)","v":""},"TUBE SUCTION TEST: DV READINGS","Report - Specimen # 1","Day No.",4,"Reading",{"$f":"IF('DV Readings'!$E$24=\"\",\"\",'DV Readings'!$E$24)","v":3}]
[84,{"$f":"IF('DV Readings'!$F$28=\"\",\"\",'DV Readings'!$F$28)","v":""},"TUBE SUCTION TEST: DV READINGS","Report - Specimen # 1","Day No.",4,"Reading",{"$f":"IF('DV Readings'!$F$24=\"\",\"\",'DV Readings'!$F$24)","v":4}]
[85,{"$f":"IF('DV Readings'!$G$28=\"\",\"\",'DV Readings'!$G$28)","v":""},"TUBE SUCTION TEST: DV READINGS","Report - Specimen # 1","Day No.",4,"Reading",{"$f":"IF('DV Readings'!$G$24=\"\",\"\",'DV Readings'!$G$24)","v":5}]
[86,{"$f":"IF('DV Readings'!$H$28=\"\",\"\",'DV Readings'!$H$28)","v":""},"TUBE SUCTION TEST: DV READINGS","Report - Specimen # 1","Day No.",4,"Average"]
[87,{"$f":"IF('DV Readings'!$C$29=\"\",\"\",'DV Readings'!$C$29)","v":""},"TUBE SUCTION TEST: DV READINGS","Report - Specimen # 1","Day No.",5,"Reading",{"$f":"IF('DV Readings'!$C$24=\"\",\"\",'DV Readings'!$C$24)","v":1}]
[88,{"$f":"IF('DV Readings'!$D$29=\"\",\"\",'DV Readings'!$D$29)","v":""},"TUBE SUCTION TEST: DV READINGS","Report - Specimen # 1","Day No.",5,"Reading",{"$f":"IF('DV Readings'!$D$24=\"\",\"\",'DV Readings'!$D$24)","v":2}]
[89,{"$f":"IF('DV Readings'!$E$29=\"\",\"\",'DV Readings'!$E$29)","v":""},"TUBE SUCTION TEST: DV READINGS","Report - Specimen # 1","Day No.",5,"Reading",{"$f":"IF('DV Readings'!$E$24=\"\",\"\",'DV Readings'!$E$24)","v":3}]
[90,{"$f":"IF('DV Readings'!$F$29=\"\",\"\",'DV Readings'!$F$29)","v":""},"TUBE SUCTION TEST: DV READINGS","Report - Specimen # 1","Day No.",5,"Reading",{"$f":"IF('DV Readings'!$F$24=\"\",\"\",'DV Readings'!$F$24)","v":4}]
[91,{"$f":"IF('DV Readings'!$G$29=\"\",\"\",'DV Readings'!$G$29)","v":""},"TUBE SUCTION TEST: DV READINGS","Report - Specimen # 1","Day No.",5,"Reading",{"$f":"IF('DV Readings'!$G$24=\"\",\"\",'DV Readings'!$G$24)","v":5}]
[92,{"$f":"IF('DV Readings'!$H$29=\"\",\"\",'DV Readings'!$H$29)","v":""},"TUBE SUCTION TEST: DV READINGS","Report - Specimen # 1","Day No.",5,"Average"]
[93,{"$f":"IF('DV Readings'!$C$30=\"\",\"\",'DV Readings'!$C$30)","v":""},"TUBE SUCTION TEST: DV READINGS","Report - Specimen # 1","Day No.",6,"Reading",{"$f":"IF('DV Readings'!$C$24=\"\",\"\",'DV Readings'!$C$24)","v":1}]
[94,{"$f":"IF('DV Readings'!$D$30=\"\",\"\",'DV Readings'!$D$30)","v":""},"TUBE SUCTION TEST: DV READINGS","Report - Specimen # 1","Day No.",6,"Reading",{"$f":"IF('DV Readings'!$D$24=\"\",\"\",'DV Readings'!$D$24)","v":2}]
[95,{"$f":"IF('DV Readings'!$E$30=\"\",\"\",'DV Readings'!$E$30)","v":""},"TUBE SUCTION TEST: DV READINGS","Report - Specimen # 1","Day No.",6,"Reading",{"$f":"IF('DV Readings'!$E$24=\"\",\"\",'DV Readings'!$E$24)","v":3}]
[96,{"$f":"IF('DV Readings'!$F$30=\"\",\"\",'DV Readings'!$F$30)","v":""},"TUBE SUCTION TEST: DV READINGS","Report - Specimen # 1","Day No.",6,"Reading",{"$f":"IF('DV Readings'!$F$24=\"\",\"\",'DV Readings'!$F$24)","v":4}]
[97,{"$f":"IF('DV Readings'!$G$30=\"\",\"\",'DV Readings'!$G$30)","v":""},"TUBE SUCTION TEST: DV READINGS","Report - Specimen # 1","Day No.",6,"Reading",{"$f":"IF('DV Readings'!$G$24=\"\",\"\",'DV Readings'!$G$24)","v":5}]
[98,{"$f":"IF('DV Readings'!$H$30=\"\",\"\",'DV Readings'!$H$30)","v":""},"TUBE SUCTION TEST: DV READINGS","Report - Specimen # 1","Day No.",6,"Average"]
[99,{"$f":"IF('DV Readings'!$C$31=\"\",\"\",'DV Readings'!$C$31)","v":""},"TUBE SUCTION TEST: DV READINGS","Report - Specimen # 1","Day No.",7,"Reading",{"$f":"IF('DV Readings'!$C$24=\"\",\"\",'DV Readings'!$C$24)","v":1}]
[100,{"$f":"IF('DV Readings'!$D$31=\"\",\"\",'DV Readings'!$D$31)","v":""},"TUBE SUCTION TEST: DV READINGS","Report - Specimen # 1","Day No.",7,"Reading",{"$f":"IF('DV Readings'!$D$24=\"\",\"\",'DV Readings'!$D$24)","v":2}]
[101,{"$f":"IF('DV Readings'!$E$31=\"\",\"\",'DV Readings'!$E$31)","v":""},"TUBE SUCTION TEST: DV READINGS","Report - Specimen # 1","Day No.",7,"Reading",{"$f":"IF('DV Readings'!$E$24=\"\",\"\",'DV Readings'!$E$24)","v":3}]
[102,{"$f":"IF('DV Readings'!$F$31=\"\",\"\",'DV Readings'!$F$31)","v":""},"TUBE SUCTION TEST: DV READINGS","Report - Specimen # 1","Day No.",7,"Reading",{"$f":"IF('DV Readings'!$F$24=\"\",\"\",'DV Readings'!$F$24)","v":4}]
[103,{"$f":"IF('DV Readings'!$G$31=\"\",\"\",'DV Readings'!$G$31)","v":""},"TUBE SUCTION TEST: DV READINGS","Report - Specimen # 1","Day No.",7,"Reading",{"$f":"IF('DV Readings'!$G$24=\"\",\"\",'DV Readings'!$G$24)","v":5}]
[104,{"$f":"IF('DV Readings'!$H$31=\"\",\"\",'DV Readings'!$H$31)","v":""},"TUBE SUCTION TEST: DV READINGS","Report - Specimen # 1","Day No.",7,"Average"]
[105,{"$f":"IF('DV Readings'!$C$32=\"\",\"\",'DV Readings'!$C$32)","v":""},"TUBE SUCTION TEST: DV READINGS","Report - Specimen # 1","Day No.",8,"Reading",{"$f":"IF('DV Readings'!$C$24=\"\",\"\",'DV Readings'!$C$24)","v":1}]
[106,{"$f":"IF('DV Readings'!$D$32=\"\",\"\",'DV Readings'!$D$32)","v":""},"TUBE SUCTION TEST: DV READINGS","Report - Specimen # 1","Day No.",8,"Reading",{"$f":"IF('DV Readings'!$D$24=\"\",\"\",'DV Readings'!$D$24)","v":2}]
[107,{"$f":"IF('DV Readings'!$E$32=\"\",\"\",'DV Readings'!$E$32)","v":""},"TUBE SUCTION TEST: DV READINGS","Report - Specimen # 1","Day No.",8,"Reading",{"$f":"IF('DV Readings'!$E$24=\"\",\"\",'DV Readings'!$E$24)","v":3}]
[108,{"$f":"IF('DV Readings'!$F$32=\"\",\"\",'DV Readings'!$F$32)","v":""},"TUBE SUCTION TEST: DV READINGS","Report - Specimen # 1","Day No.",8,"Reading",{"$f":"IF('DV Readings'!$F$24=\"\",\"\",'DV Readings'!$F$24)","v":4}]
[109,{"$f":"IF('DV Readings'!$G$32=\"\",\"\",'DV Readings'!$G$32)","v":""},"TUBE SUCTION TEST: DV READINGS","Report - Specimen # 1","Day No.",8,"Reading",{"$f":"IF('DV Readings'!$G$24=\"\",\"\",'DV Readings'!$G$24)","v":5}]
[110,{"$f":"IF('DV Readings'!$H$32=\"\",\"\",'DV Readings'!$H$32)","v":""},"TUBE SUCTION TEST: DV READINGS","Report - Specimen # 1","Day No.",8,"Average"]
[111,{"$f":"IF('DV Readings'!$C$33=\"\",\"\",'DV Readings'!$C$33)","v":""},"TUBE SUCTION TEST: DV READINGS","Report - Specimen # 1","Day No.",9,"Reading",{"$f":"IF('DV Readings'!$C$24=\"\",\"\",'DV Readings'!$C$24)","v":1}]
[112,{"$f":"IF('DV Readings'!$D$33=\"\",\"\",'DV Readings'!$D$33)","v":""},"TUBE SUCTION TEST: DV READINGS","Report - Specimen # 1","Day No.",9,"Reading",{"$f":"IF('DV Readings'!$D$24=\"\",\"\",'DV Readings'!$D$24)","v":2}]
[113,{"$f":"IF('DV Readings'!$E$33=\"\",\"\",'DV Readings'!$E$33)","v":""},"TUBE SUCTION TEST: DV READINGS","Report - Specimen # 1","Day No.",9,"Reading",{"$f":"IF('DV Readings'!$E$24=\"\",\"\",'DV Readings'!$E$24)","v":3}]
[114,{"$f":"IF('DV Readings'!$F$33=\"\",\"\",'DV Readings'!$F$33)","v":""},"TUBE SUCTION TEST: DV READINGS","Report - Specimen # 1","Day No.",9,"Reading",{"$f":"IF('DV Readings'!$F$24=\"\",\"\",'DV Readings'!$F$24)","v":4}]
[115,{"$f":"IF('DV Readings'!$G$33=\"\",\"\",'DV Readings'!$G$33)","v":""},"TUBE SUCTION TEST: DV READINGS","Report - Specimen # 1","Day No.",9,"Reading",{"$f":"IF('DV Readings'!$G$24=\"\",\"\",'DV Readings'!$G$24)","v":5}]
[116,{"$f":"IF('DV Readings'!$H$33=\"\",\"\",'DV Readings'!$H$33)","v":""},"TUBE SUCTION TEST: DV READINGS","Report - Specimen # 1","Day No.",9,"Average"]
[117,{"$f":"IF('DV Readings'!$C$34=\"\",\"\",'DV Readings'!$C$34)","v":""},"TUBE SUCTION TEST: DV READINGS","Report - Specimen # 1","Day No.",10,"Reading",{"$f":"IF('DV Readings'!$C$24=\"\",\"\",'DV Readings'!$C$24)","v":1}]
[118,{"$f":"IF('DV Readings'!$D$34=\"\",\"\",'DV Readings'!$D$34)","v":""},"TUBE SUCTION TEST: DV READINGS","Report - Specimen # 1","Day No.",10,"Reading",{"$f":"IF('DV Readings'!$D$24=\"\",\"\",'DV Readings'!$D$24)","v":2}]
[119,{"$f":"IF('DV Readings'!$E$34=\"\",\"\",'DV Readings'!$E$34)","v":""},"TUBE SUCTION TEST: DV READINGS","Report - Specimen # 1","Day No.",10,"Reading",{"$f":"IF('DV Readings'!$E$24=\"\",\"\",'DV Readings'!$E$24)","v":3}]
[120,{"$f":"IF('DV Readings'!$F$34=\"\",\"\",'DV Readings'!$F$34)","v":""},"TUBE SUCTION TEST: DV READINGS","Report - Specimen # 1","Day No.",10,"Reading",{"$f":"IF('DV Readings'!$F$24=\"\",\"\",'DV Readings'!$F$24)","v":4}]
[121,{"$f":"IF('DV Readings'!$G$34=\"\",\"\",'DV Readings'!$G$34)","v":""},"TUBE SUCTION TEST: DV READINGS","Report - Specimen # 1","Day No.",10,"Reading",{"$f":"IF('DV Readings'!$G$24=\"\",\"\",'DV Readings'!$G$24)","v":5}]
[122,{"$f":"IF('DV Readings'!$H$34=\"\",\"\",'DV Readings'!$H$34)","v":""},"TUBE SUCTION TEST: DV READINGS","Report - Specimen # 1","Day No.",10,"Average"]
[123,{"$f":"IF('DV Readings'!$H$35=\"\",\"\",'DV Readings'!$H$35)","v":""},"TUBE SUCTION TEST: DV READINGS","Report - Specimen # 1","Average"]
[124,{"$f":"IF('DV Readings'!$C$41=\"\",\"\",'DV Readings'!$C$41)","v":""},"TUBE SUCTION TEST: DV READINGS","Report - Specimen # 2","Day No.",1,"Reading",{"$f":"IF('DV Readings'!$C$40=\"\",\"\",'DV Readings'!$C$40)","v":1}]
[125,{"$f":"IF('DV Readings'!$D$41=\"\",\"\",'DV Readings'!$D$41)","v":""},"TUBE SUCTION TEST: DV READINGS","Report - Specimen # 2","Day No.",1,"Reading",{"$f":"IF('DV Readings'!$D$40=\"\",\"\",'DV Readings'!$D$40)","v":2}]
[126,{"$f":"IF('DV Readings'!$E$41=\"\",\"\",'DV Readings'!$E$41)","v":""},"TUBE SUCTION TEST: DV READINGS","Report - Specimen # 2","Day No.",1,"Reading",{"$f":"IF('DV Readings'!$E$40=\"\",\"\",'DV Readings'!$E$40)","v":3}]
[127,{"$f":"IF('DV Readings'!$F$41=\"\",\"\",'DV Readings'!$F$41)","v":""},"TUBE SUCTION TEST: DV READINGS","Report - Specimen # 2","Day No.",1,"Reading",{"$f":"IF('DV Readings'!$F$40=\"\",\"\",'DV Readings'!$F$40)","v":4}]
[128,{"$f":"IF('DV Readings'!$G$41=\"\",\"\",'DV Readings'!$G$41)","v":""},"TUBE SUCTION TEST: DV READINGS","Report - Specimen # 2","Day No.",1,"Reading",{"$f":"IF('DV Readings'!$G$40=\"\",\"\",'DV Readings'!$G$40)","v":5}]
[129,{"$f":"IF('DV Readings'!$H$41=\"\",\"\",'DV Readings'!$H$41)","v":""},"TUBE SUCTION TEST: DV READINGS","Report - Specimen # 2","Day No.",1,"Average"]
[130,{"$f":"IF('DV Readings'!$C$42=\"\",\"\",'DV Readings'!$C$42)","v":""},"TUBE SUCTION TEST: DV READINGS","Report - Specimen # 2","Day No.",2,"Reading",{"$f":"IF('DV Readings'!$C$40=\"\",\"\",'DV Readings'!$C$40)","v":1}]
[131,{"$f":"IF('DV Readings'!$D$42=\"\",\"\",'DV Readings'!$D$42)","v":""},"TUBE SUCTION TEST: DV READINGS","Report - Specimen # 2","Day No.",2,"Reading",{"$f":"IF('DV Readings'!$D$40=\"\",\"\",'DV Readings'!$D$40)","v":2}]
[132,{"$f":"IF('DV Readings'!$E$42=\"\",\"\",'DV Readings'!$E$42)","v":""},"TUBE SUCTION TEST: DV READINGS","Report - Specimen # 2","Day No.",2,"Reading",{"$f":"IF('DV Readings'!$E$40=\"\",\"\",'DV Readings'!$E$40)","v":3}]
[133,{"$f":"IF('DV Readings'!$F$42=\"\",\"\",'DV Readings'!$F$42)","v":""},"TUBE SUCTION TEST: DV READINGS","Report - Specimen # 2","Day No.",2,"Reading",{"$f":"IF('DV Readings'!$F$40=\"\",\"\",'DV Readings'!$F$40)","v":4}]
[134,{"$f":"IF('DV Readings'!$G$42=\"\",\"\",'DV Readings'!$G$42)","v":""},"TUBE SUCTION TEST: DV READINGS","Report - Specimen # 2","Day No.",2,"Reading",{"$f":"IF('DV Readings'!$G$40=\"\",\"\",'DV Readings'!$G$40)","v":5}]
[135,{"$f":"IF('DV Readings'!$H$42=\"\",\"\",'DV Readings'!$H$42)","v":""},"TUBE SUCTION TEST: DV READINGS","Report - Specimen # 2","Day No.",2,"Average"]
[136,{"$f":"IF('DV Readings'!$C$43=\"\",\"\",'DV Readings'!$C$43)","v":""},"TUBE SUCTION TEST: DV READINGS","Report - Specimen # 2","Day No.",3,"Reading",{"$f":"IF('DV Readings'!$C$40=\"\",\"\",'DV Readings'!$C$40)","v":1}]
[137,{"$f":"IF('DV Readings'!$D$43=\"\",\"\",'DV Readings'!$D$43)","v":""},"TUBE SUCTION TEST: DV READINGS","Report - Specimen # 2","Day No.",3,"Reading",{"$f":"IF('DV Readings'!$D$40=\"\",\"\",'DV Readings'!$D$40)","v":2}]
[138,{"$f":"IF('DV Readings'!$E$43=\"\",\"\",'DV Readings'!$E$43)","v":""},"TUBE SUCTION TEST: DV READINGS","Report - Specimen # 2","Day No.",3,"Reading",{"$f":"IF('DV Readings'!$E$40=\"\",\"\",'DV Readings'!$E$40)","v":3}]
[139,{"$f":"IF('DV Readings'!$F$43=\"\",\"\",'DV Readings'!$F$43)","v":""},"TUBE SUCTION TEST: DV READINGS","Report - Specimen # 2","Day No.",3,"Reading",{"$f":"IF('DV Readings'!$F$40=\"\",\"\",'DV Readings'!$F$40)","v":4}]
[140,{"$f":"IF('DV Readings'!$G$43=\"\",\"\",'DV Readings'!$G$43)","v":""},"TUBE SUCTION TEST: DV READINGS","Report - Specimen # 2","Day No.",3,"Reading",{"$f":"IF('DV Readings'!$G$40=\"\",\"\",'DV Readings'!$G$40)","v":5}]
[141,{"$f":"IF('DV Readings'!$H$43=\"\",\"\",'DV Readings'!$H$43)","v":""},"TUBE SUCTION TEST: DV READINGS","Report - Specimen # 2","Day No.",3,"Average"]
[142,{"$f":"IF('DV Readings'!$C$44=\"\",\"\",'DV Readings'!$C$44)","v":""},"TUBE SUCTION TEST: DV READINGS","Report - Specimen # 2","Day No.",4,"Reading",{"$f":"IF('DV Readings'!$C$40=\"\",\"\",'DV Readings'!$C$40)","v":1}]
[143,{"$f":"IF('DV Readings'!$D$44=\"\",\"\",'DV Readings'!$D$44)","v":""},"TUBE SUCTION TEST: DV READINGS","Report - Specimen # 2","Day No.",4,"Reading",{"$f":"IF('DV Readings'!$D$40=\"\",\"\",'DV Readings'!$D$40)","v":2}]
[144,{"$f":"IF('DV Readings'!$E$44=\"\",\"\",'DV Readings'!$E$44)","v":""},"TUBE SUCTION TEST: DV READINGS","Report - Specimen # 2","Day No.",4,"Reading",{"$f":"IF('DV Readings'!$E$40=\"\",\"\",'DV Readings'!$E$40)","v":3}]
[145,{"$f":"IF('DV Readings'!$F$44=\"\",\"\",'DV Readings'!$F$44)","v":""},"TUBE SUCTION TEST: DV READINGS","Report - Specimen # 2","Day No.",4,"Reading",{"$f":"IF('DV Readings'!$F$40=\"\",\"\",'DV Readings'!$F$40)","v":4}]
[146,{"$f":"IF('DV Readings'!$G$44=\"\",\"\",'DV Readings'!$G$44)","v":""},"TUBE SUCTION TEST: DV READINGS","Report - Specimen # 2","Day No.",4,"Reading",{"$f":"IF('DV Readings'!$G$40=\"\",\"\",'DV Readings'!$G$40)","v":5}]
[147,{"$f":"IF('DV Readings'!$H$44=\"\",\"\",'DV Readings'!$H$44)","v":""},"TUBE SUCTION TEST: DV READINGS","Report - Specimen # 2","Day No.",4,"Average"]
[148,{"$f":"IF('DV Readings'!$C$45=\"\",\"\",'DV Readings'!$C$45)","v":""},"TUBE SUCTION TEST: DV READINGS","Report - Specimen # 2","Day No.",5,"Reading",{"$f":"IF('DV Readings'!$C$40=\"\",\"\",'DV Readings'!$C$40)","v":1}]
[149,{"$f":"IF('DV Readings'!$D$45=\"\",\"\",'DV Readings'!$D$45)","v":""},"TUBE SUCTION TEST: DV READINGS","Report - Specimen # 2","Day No.",5,"Reading",{"$f":"IF('DV Readings'!$D$40=\"\",\"\",'DV Readings'!$D$40)","v":2}]
[150,{"$f":"IF('DV Readings'!$E$45=\"\",\"\",'DV Readings'!$E$45)","v":""},"TUBE SUCTION TEST: DV READINGS","Report - Specimen # 2","Day No.",5,"Reading",{"$f":"IF('DV Readings'!$E$40=\"\",\"\",'DV Readings'!$E$40)","v":3}]
[151,{"$f":"IF('DV Readings'!$F$45=\"\",\"\",'DV Readings'!$F$45)","v":""},"TUBE SUCTION TEST: DV READINGS","Report - Specimen # 2","Day No.",5,"Reading",{"$f":"IF('DV Readings'!$F$40=\"\",\"\",'DV Readings'!$F$40)","v":4}]
[152,{"$f":"IF('DV Readings'!$G$45=\"\",\"\",'DV Readings'!$G$45)","v":""},"TUBE SUCTION TEST: DV READINGS","Report - Specimen # 2","Day No.",5,"Reading",{"$f":"IF('DV Readings'!$G$40=\"\",\"\",'DV Readings'!$G$40)","v":5}]
[153,{"$f":"IF('DV Readings'!$H$45=\"\",\"\",'DV Readings'!$H$45)","v":""},"TUBE SUCTION TEST: DV READINGS","Report - Specimen # 2","Day No.",5,"Average"]
[154,{"$f":"IF('DV Readings'!$C$46=\"\",\"\",'DV Readings'!$C$46)","v":""},"TUBE SUCTION TEST: DV READINGS","Report - Specimen # 2","Day No.",6,"Reading",{"$f":"IF('DV Readings'!$C$40=\"\",\"\",'DV Readings'!$C$40)","v":1}]
[155,{"$f":"IF('DV Readings'!$D$46=\"\",\"\",'DV Readings'!$D$46)","v":""},"TUBE SUCTION TEST: DV READINGS","Report - Specimen # 2","Day No.",6,"Reading",{"$f":"IF('DV Readings'!$D$40=\"\",\"\",'DV Readings'!$D$40)","v":2}]
[156,{"$f":"IF('DV Readings'!$E$46=\"\",\"\",'DV Readings'!$E$46)","v":""},"TUBE SUCTION TEST: DV READINGS","Report - Specimen # 2","Day No.",6,"Reading",{"$f":"IF('DV Readings'!$E$40=\"\",\"\",'DV Readings'!$E$40)","v":3}]
[157,{"$f":"IF('DV Readings'!$F$46=\"\",\"\",'DV Readings'!$F$46)","v":""},"TUBE SUCTION TEST: DV READINGS","Report - Specimen # 2","Day No.",6,"Reading",{"$f":"IF('DV Readings'!$F$40=\"\",\"\",'DV Readings'!$F$40)","v":4}]
[158,{"$f":"IF('DV Readings'!$G$46=\"\",\"\",'DV Readings'!$G$46)","v":""},"TUBE SUCTION TEST: DV READINGS","Report - Specimen # 2","Day No.",6,"Reading",{"$f":"IF('DV Readings'!$G$40=\"\",\"\",'DV Readings'!$G$40)","v":5}]
[159,{"$f":"IF('DV Readings'!$H$46=\"\",\"\",'DV Readings'!$H$46)","v":""},"TUBE SUCTION TEST: DV READINGS","Report - Specimen # 2","Day No.",6,"Average"]
[160,{"$f":"IF('DV Readings'!$C$47=\"\",\"\",'DV Readings'!$C$47)","v":""},"TUBE SUCTION TEST: DV READINGS","Report - Specimen # 2","Day No.",7,"Reading",{"$f":"IF('DV Readings'!$C$40=\"\",\"\",'DV Readings'!$C$40)","v":1}]
[161,{"$f":"IF('DV Readings'!$D$47=\"\",\"\",'DV Readings'!$D$47)","v":""},"TUBE SUCTION TEST: DV READINGS","Report - Specimen # 2","Day No.",7,"Reading",{"$f":"IF('DV Readings'!$D$40=\"\",\"\",'DV Readings'!$D$40)","v":2}]
[162,{"$f":"IF('DV Readings'!$E$47=\"\",\"\",'DV Readings'!$E$47)","v":""},"TUBE SUCTION TEST: DV READINGS","Report - Specimen # 2","Day No.",7,"Reading",{"$f":"IF('DV Readings'!$E$40=\"\",\"\",'DV Readings'!$E$40)","v":3}]
[163,{"$f":"IF('DV Readings'!$F$47=\"\",\"\",'DV Readings'!$F$47)","v":""},"TUBE SUCTION TEST: DV READINGS","Report - Specimen # 2","Day No.",7,"Reading",{"$f":"IF('DV Readings'!$F$40=\"\",\"\",'DV Readings'!$F$40)","v":4}]
[164,{"$f":"IF('DV Readings'!$G$47=\"\",\"\",'DV Readings'!$G$47)","v":""},"TUBE SUCTION TEST: DV READINGS","Report - Specimen # 2","Day No.",7,"Reading",{"$f":"IF('DV Readings'!$G$40=\"\",\"\",'DV Readings'!$G$40)","v":5}]
[165,{"$f":"IF('DV Readings'!$H$47=\"\",\"\",'DV Readings'!$H$47)","v":""},"TUBE SUCTION TEST: DV READINGS","Report - Specimen # 2","Day No.",7,"Average"]
[166,{"$f":"IF('DV Readings'!$C$48=\"\",\"\",'DV Readings'!$C$48)","v":""},"TUBE SUCTION TEST: DV READINGS","Report - Specimen # 2","Day No.",8,"Reading",{"$f":"IF('DV Readings'!$C$40=\"\",\"\",'DV Readings'!$C$40)","v":1}]
[167,{"$f":"IF('DV Readings'!$D$48=\"\",\"\",'DV Readings'!$D$48)","v":""},"TUBE SUCTION TEST: DV READINGS","Report - Specimen # 2","Day No.",8,"Reading",{"$f":"IF('DV Readings'!$D$40=\"\",\"\",'DV Readings'!$D$40)","v":2}]
[168,{"$f":"IF('DV Readings'!$E$48=\"\",\"\",'DV Readings'!$E$48)","v":""},"TUBE SUCTION TEST: DV READINGS","Report - Specimen # 2","Day No.",8,"Reading",{"$f":"IF('DV Readings'!$E$40=\"\",\"\",'DV Readings'!$E$40)","v":3}]
[169,{"$f":"IF('DV Readings'!$F$48=\"\",\"\",'DV Readings'!$F$48)","v":""},"TUBE SUCTION TEST: DV READINGS","Report - Specimen # 2","Day No.",8,"Reading",{"$f":"IF('DV Readings'!$F$40=\"\",\"\",'DV Readings'!$F$40)","v":4}]
[170,{"$f":"IF('DV Readings'!$G$48=\"\",\"\",'DV Readings'!$G$48)","v":""},"TUBE SUCTION TEST: DV READINGS","Report - Specimen # 2","Day No.",8,"Reading",{"$f":"IF('DV Readings'!$G$40=\"\",\"\",'DV Readings'!$G$40)","v":5}]
[171,{"$f":"IF('DV Readings'!$H$48=\"\",\"\",'DV Readings'!$H$48)","v":""},"TUBE SUCTION TEST: DV READINGS","Report - Specimen # 2","Day No.",8,"Average"]
[172,{"$f":"IF('DV Readings'!$C$49=\"\",\"\",'DV Readings'!$C$49)","v":""},"TUBE SUCTION TEST: DV READINGS","Report - Specimen # 2","Day No.",9,"Reading",{"$f":"IF('DV Readings'!$C$40=\"\",\"\",'DV Readings'!$C$40)","v":1}]
[173,{"$f":"IF('DV Readings'!$D$49=\"\",\"\",'DV Readings'!$D$49)","v":""},"TUBE SUCTION TEST: DV READINGS","Report - Specimen # 2","Day No.",9,"Reading",{"$f":"IF('DV Readings'!$D$40=\"\",\"\",'DV Readings'!$D$40)","v":2}]
[174,{"$f":"IF('DV Readings'!$E$49=\"\",\"\",'DV Readings'!$E$49)","v":""},"TUBE SUCTION TEST: DV READINGS","Report - Specimen # 2","Day No.",9,"Reading",{"$f":"IF('DV Readings'!$E$40=\"\",\"\",'DV Readings'!$E$40)","v":3}]
[175,{"$f":"IF('DV Readings'!$F$49=\"\",\"\",'DV Readings'!$F$49)","v":""},"TUBE SUCTION TEST: DV READINGS","Report - Specimen # 2","Day No.",9,"Reading",{"$f":"IF('DV Readings'!$F$40=\"\",\"\",'DV Readings'!$F$40)","v":4}]
[176,{"$f":"IF('DV Readings'!$G$49=\"\",\"\",'DV Readings'!$G$49)","v":""},"TUBE SUCTION TEST: DV READINGS","Report - Specimen # 2","Day No.",9,"Reading",{"$f":"IF('DV Readings'!$G$40=\"\",\"\",'DV Readings'!$G$40)","v":5}]
[177,{"$f":"IF('DV Readings'!$H$49=\"\",\"\",'DV Readings'!$H$49)","v":""},"TUBE SUCTION TEST: DV READINGS","Report - Specimen # 2","Day No.",9,"Average"]
[178,{"$f":"IF('DV Readings'!$C$50=\"\",\"\",'DV Readings'!$C$50)","v":""},"TUBE SUCTION TEST: DV READINGS","Report - Specimen # 2","Day No.",10,"Reading",{"$f":"IF('DV Readings'!$C$40=\"\",\"\",'DV Readings'!$C$40)","v":1}]
[179,{"$f":"IF('DV Readings'!$D$50=\"\",\"\",'DV Readings'!$D$50)","v":""},"TUBE SUCTION TEST: DV READINGS","Report - Specimen # 2","Day No.",10,"Reading",{"$f":"IF('DV Readings'!$D$40=\"\",\"\",'DV Readings'!$D$40)","v":2}]
[180,{"$f":"IF('DV Readings'!$E$50=\"\",\"\",'DV Readings'!$E$50)","v":""},"TUBE SUCTION TEST: DV READINGS","Report - Specimen # 2","Day No.",10,"Reading",{"$f":"IF('DV Readings'!$E$40=\"\",\"\",'DV Readings'!$E$40)","v":3}]
[181,{"$f":"IF('DV Readings'!$F$50=\"\",\"\",'DV Readings'!$F$50)","v":""},"TUBE SUCTION TEST: DV READINGS","Report - Specimen # 2","Day No.",10,"Reading",{"$f":"IF('DV Readings'!$F$40=\"\",\"\",'DV Readings'!$F$40)","v":4}]
[182,{"$f":"IF('DV Readings'!$G$50=\"\",\"\",'DV Readings'!$G$50)","v":""},"TUBE SUCTION TEST: DV READINGS","Report - Specimen # 2","Day No.",10,"Reading",{"$f":"IF('DV Readings'!$G$40=\"\",\"\",'DV Readings'!$G$40)","v":5}]
[183,{"$f":"IF('DV Readings'!$H$50=\"\",\"\",'DV Readings'!$H$50)","v":""},"TUBE SUCTION TEST: DV READINGS","Report - Specimen # 2","Day No.",10,"Average"]
[184,{"$f":"IF('DV Readings'!$H$51=\"\",\"\",'DV Readings'!$H$51)","v":""},"TUBE SUCTION TEST: DV READINGS","Report - Specimen # 2","Average"]
[185,{"$f":"IF('DV Readings'!$C$57=\"\",\"\",'DV Readings'!$C$57)","v":""},"TUBE SUCTION TEST: DV READINGS","Report - Specimen # 3","Day No.",1,"Reading",{"$f":"IF('DV Readings'!$C$56=\"\",\"\",'DV Readings'!$C$56)","v":1}]
[186,{"$f":"IF('DV Readings'!$D$57=\"\",\"\",'DV Readings'!$D$57)","v":""},"TUBE SUCTION TEST: DV READINGS","Report - Specimen # 3","Day No.",1,"Reading",{"$f":"IF('DV Readings'!$D$56=\"\",\"\",'DV Readings'!$D$56)","v":2}]
[187,{"$f":"IF('DV Readings'!$E$57=\"\",\"\",'DV Readings'!$E$57)","v":""},"TUBE SUCTION TEST: DV READINGS","Report - Specimen # 3","Day No.",1,"Reading",{"$f":"IF('DV Readings'!$E$56=\"\",\"\",'DV Readings'!$E$56)","v":3}]
[188,{"$f":"IF('DV Readings'!$F$57=\"\",\"\",'DV Readings'!$F$57)","v":""},"TUBE SUCTION TEST: DV READINGS","Report - Specimen # 3","Day No.",1,"Reading",{"$f":"IF('DV Readings'!$F$56=\"\",\"\",'DV Readings'!$F$56)","v":4}]
[189,{"$f":"IF('DV Readings'!$G$57=\"\",\"\",'DV Readings'!$G$57)","v":""},"TUBE SUCTION TEST: DV READINGS","Report - Specimen # 3","Day No.",1,"Reading",{"$f":"IF('DV Readings'!$G$56=\"\",\"\",'DV Readings'!$G$56)","v":5}]
[190,{"$f":"IF('DV Readings'!$H$57=\"\",\"\",'DV Readings'!$H$57)","v":""},"TUBE SUCTION TEST: DV READINGS","Report - Specimen # 3","Day No.",1,"Average"]
[191,{"$f":"IF('DV Readings'!$C$58=\"\",\"\",'DV Readings'!$C$58)","v":""},"TUBE SUCTION TEST: DV READINGS","Report - Specimen # 3","Day No.",2,"Reading",{"$f":"IF('DV Readings'!$C$56=\"\",\"\",'DV Readings'!$C$56)","v":1}]
[192,{"$f":"IF('DV Readings'!$D$58=\"\",\"\",'DV Readings'!$D$58)","v":""},"TUBE SUCTION TEST: DV READINGS","Report - Specimen # 3","Day No.",2,"Reading",{"$f":"IF('DV Readings'!$D$56=\"\",\"\",'DV Readings'!$D$56)","v":2}]
[193,{"$f":"IF('DV Readings'!$E$58=\"\",\"\",'DV Readings'!$E$58)","v":""},"TUBE SUCTION TEST: DV READINGS","Report - Specimen # 3","Day No.",2,"Reading",{"$f":"IF('DV Readings'!$E$56=\"\",\"\",'DV Readings'!$E$56)","v":3}]
[194,{"$f":"IF('DV Readings'!$F$58=\"\",\"\",'DV Readings'!$F$58)","v":""},"TUBE SUCTION TEST: DV READINGS","Report - Specimen # 3","Day No.",2,"Reading",{"$f":"IF('DV Readings'!$F$56=\"\",\"\",'DV Readings'!$F$56)","v":4}]
[195,{"$f":"IF('DV Readings'!$G$58=\"\",\"\",'DV Readings'!$G$58)","v":""},"TUBE SUCTION TEST: DV READINGS","Report - Specimen # 3","Day No.",2,"Reading",{"$f":"IF('DV Readings'!$G$56=\"\",\"\",'DV Readings'!$G$56)","v":5}]
[196,{"$f":"IF('DV Readings'!$H$58=\"\",\"\",'DV Readings'!$H$58)","v":""},"TUBE SUCTION TEST: DV READINGS","Report - Specimen # 3","Day No.",2,"Average"]
[197,{"$f":"IF('DV Readings'!$C$59=\"\",\"\",'DV Readings'!$C$59)","v":""},"TUBE SUCTION TEST: DV READINGS","Report - Specimen # 3","Day No.",3,"Reading",{"$f":"IF('DV Readings'!$C$56=\"\",\"\",'DV Readings'!$C$56)","v":1}]
[198,{"$f":"IF('DV Readings'!$D$59=\"\",\"\",'DV Readings'!$D$59)","v":""},"TUBE SUCTION TEST: DV READINGS","Report - Specimen # 3","Day No.",3,"Reading",{"$f":"IF('DV Readings'!$D$56=\"\",\"\",'DV Readings'!$D$56)","v":2}]
[199,{"$f":"IF('DV Readings'!$E$59=\"\",\"\",'DV Readings'!$E$59)","v":""},"TUBE SUCTION TEST: DV READINGS","Report - Specimen # 3","Day No.",3,"Reading",{"$f":"IF('DV Readings'!$E$56=\"\",\"\",'DV Readings'!$E$56)","v":3}]
[200,{"$f":"IF('DV Readings'!$F$59=\"\",\"\",'DV Readings'!$F$59)","v":""},"TUBE SUCTION TEST: DV READINGS","Report - Specimen # 3","Day No.",3,"Reading",{"$f":"IF('DV Readings'!$F$56=\"\",\"\",'DV Readings'!$F$56)","v":4}]
[201,{"$f":"IF('DV Readings'!$G$59=\"\",\"\",'DV Readings'!$G$59)","v":""},"TUBE SUCTION TEST: DV READINGS","Report - Specimen # 3","Day No.",3,"Reading",{"$f":"IF('DV Readings'!$G$56=\"\",\"\",'DV Readings'!$G$56)","v":5}]
[202,{"$f":"IF('DV Readings'!$H$59=\"\",\"\",'DV Readings'!$H$59)","v":""},"TUBE SUCTION TEST: DV READINGS","Report - Specimen # 3","Day No.",3,"Average"]
[203,{"$f":"IF('DV Readings'!$C$60=\"\",\"\",'DV Readings'!$C$60)","v":""},"TUBE SUCTION TEST: DV READINGS","Report - Specimen # 3","Day No.",4,"Reading",{"$f":"IF('DV Readings'!$C$56=\"\",\"\",'DV Readings'!$C$56)","v":1}]
[204,{"$f":"IF('DV Readings'!$D$60=\"\",\"\",'DV Readings'!$D$60)","v":""},"TUBE SUCTION TEST: DV READINGS","Report - Specimen # 3","Day No.",4,"Reading",{"$f":"IF('DV Readings'!$D$56=\"\",\"\",'DV Readings'!$D$56)","v":2}]
[205,{"$f":"IF('DV Readings'!$E$60=\"\",\"\",'DV Readings'!$E$60)","v":""},"TUBE SUCTION TEST: DV READINGS","Report - Specimen # 3","Day No.",4,"Reading",{"$f":"IF('DV Readings'!$E$56=\"\",\"\",'DV Readings'!$E$56)","v":3}]
[206,{"$f":"IF('DV Readings'!$F$60=\"\",\"\",'DV Readings'!$F$60)","v":""},"TUBE SUCTION TEST: DV READINGS","Report - Specimen # 3","Day No.",4,"Reading",{"$f":"IF('DV Readings'!$F$56=\"\",\"\",'DV Readings'!$F$56)","v":4}]
[207,{"$f":"IF('DV Readings'!$G$60=\"\",\"\",'DV Readings'!$G$60)","v":""},"TUBE SUCTION TEST: DV READINGS","Report - Specimen # 3","Day No.",4,"Reading",{"$f":"IF('DV Readings'!$G$56=\"\",\"\",'DV Readings'!$G$56)","v":5}]
[208,{"$f":"IF('DV Readings'!$H$60=\"\",\"\",'DV Readings'!$H$60)","v":""},"TUBE SUCTION TEST: DV READINGS","Report - Specimen # 3","Day No.",4,"Average"]
[209,{"$f":"IF('DV Readings'!$C$61=\"\",\"\",'DV Readings'!$C$61)","v":""},"TUBE SUCTION TEST: DV READINGS","Report - Specimen # 3","Day No.",5,"Reading",{"$f":"IF('DV Readings'!$C$56=\"\",\"\",'DV Readings'!$C$56)","v":1}]
[210,{"$f":"IF('DV Readings'!$D$61=\"\",\"\",'DV Readings'!$D$61)","v":""},"TUBE SUCTION TEST: DV READINGS","Report - Specimen # 3","Day No.",5,"Reading",{"$f":"IF('DV Readings'!$D$56=\"\",\"\",'DV Readings'!$D$56)","v":2}]
[211,{"$f":"IF('DV Readings'!$E$61=\"\",\"\",'DV Readings'!$E$61)","v":""},"TUBE SUCTION TEST: DV READINGS","Report - Specimen # 3","Day No.",5,"Reading",{"$f":"IF('DV Readings'!$E$56=\"\",\"\",'DV Readings'!$E$56)","v":3}]
[212,{"$f":"IF('DV Readings'!$F$61=\"\",\"\",'DV Readings'!$F$61)","v":""},"TUBE SUCTION TEST: DV READINGS","Report - Specimen # 3","Day No.",5,"Reading",{"$f":"IF('DV Readings'!$F$56=\"\",\"\",'DV Readings'!$F$56)","v":4}]
[213,{"$f":"IF('DV Readings'!$G$61=\"\",\"\",'DV Readings'!$G$61)","v":""},"TUBE SUCTION TEST: DV READINGS","Report - Specimen # 3","Day No.",5,"Reading",{"$f":"IF('DV Readings'!$G$56=\"\",\"\",'DV Readings'!$G$56)","v":5}]
[214,{"$f":"IF('DV Readings'!$H$61=\"\",\"\",'DV Readings'!$H$61)","v":""},"TUBE SUCTION TEST: DV READINGS","Report - Specimen # 3","Day No.",5,"Average"]
[215,{"$f":"IF('DV Readings'!$C$62=\"\",\"\",'DV Readings'!$C$62)","v":""},"TUBE SUCTION TEST: DV READINGS","Report - Specimen # 3","Day No.",6,"Reading",{"$f":"IF('DV Readings'!$C$56=\"\",\"\",'DV Readings'!$C$56)","v":1}]
[216,{"$f":"IF('DV Readings'!$D$62=\"\",\"\",'DV Readings'!$D$62)","v":""},"TUBE SUCTION TEST: DV READINGS","Report - Specimen # 3","Day No.",6,"Reading",{"$f":"IF('DV Readings'!$D$56=\"\",\"\",'DV Readings'!$D$56)","v":2}]
[217,{"$f":"IF('DV Readings'!$E$62=\"\",\"\",'DV Readings'!$E$62)","v":""},"TUBE SUCTION TEST: DV READINGS","Report - Specimen # 3","Day No.",6,"Reading",{"$f":"IF('DV Readings'!$E$56=\"\",\"\",'DV Readings'!$E$56)","v":3}]
[218,{"$f":"IF('DV Readings'!$F$62=\"\",\"\",'DV Readings'!$F$62)","v":""},"TUBE SUCTION TEST: DV READINGS","Report - Specimen # 3","Day No.",6,"Reading",{"$f":"IF('DV Readings'!$F$56=\"\",\"\",'DV Readings'!$F$56)","v":4}]
[219,{"$f":"IF('DV Readings'!$G$62=\"\",\"\",'DV Readings'!$G$62)","v":""},"TUBE SUCTION TEST: DV READINGS","Report - Specimen # 3","Day No.",6,"Reading",{"$f":"IF('DV Readings'!$G$56=\"\",\"\",'DV Readings'!$G$56)","v":5}]
[220,{"$f":"IF('DV Readings'!$H$62=\"\",\"\",'DV Readings'!$H$62)","v":""},"TUBE SUCTION TEST: DV READINGS","Report - Specimen # 3","Day No.",6,"Average"]
[221,{"$f":"IF('DV Readings'!$C$63=\"\",\"\",'DV Readings'!$C$63)","v":""},"TUBE SUCTION TEST: DV READINGS","Report - Specimen # 3","Day No.",7,"Reading",{"$f":"IF('DV Readings'!$C$56=\"\",\"\",'DV Readings'!$C$56)","v":1}]
[222,{"$f":"IF('DV Readings'!$D$63=\"\",\"\",'DV Readings'!$D$63)","v":""},"TUBE SUCTION TEST: DV READINGS","Report - Specimen # 3","Day No.",7,"Reading",{"$f":"IF('DV Readings'!$D$56=\"\",\"\",'DV Readings'!$D$56)","v":2}]
[223,{"$f":"IF('DV Readings'!$E$63=\"\",\"\",'DV Readings'!$E$63)","v":""},"TUBE SUCTION TEST: DV READINGS","Report - Specimen # 3","Day No.",7,"Reading",{"$f":"IF('DV Readings'!$E$56=\"\",\"\",'DV Readings'!$E$56)","v":3}]
[224,{"$f":"IF('DV Readings'!$F$63=\"\",\"\",'DV Readings'!$F$63)","v":""},"TUBE SUCTION TEST: DV READINGS","Report - Specimen # 3","Day No.",7,"Reading",{"$f":"IF('DV Readings'!$F$56=\"\",\"\",'DV Readings'!$F$56)","v":4}]
[225,{"$f":"IF('DV Readings'!$G$63=\"\",\"\",'DV Readings'!$G$63)","v":""},"TUBE SUCTION TEST: DV READINGS","Report - Specimen # 3","Day No.",7,"Reading",{"$f":"IF('DV Readings'!$G$56=\"\",\"\",'DV Readings'!$G$56)","v":5}]
[226,{"$f":"IF('DV Readings'!$H$63=\"\",\"\",'DV Readings'!$H$63)","v":""},"TUBE SUCTION TEST: DV READINGS","Report - Specimen # 3","Day No.",7,"Average"]
[227,{"$f":"IF('DV Readings'!$C$64=\"\",\"\",'DV Readings'!$C$64)","v":""},"TUBE SUCTION TEST: DV READINGS","Report - Specimen # 3","Day No.",8,"Reading",{"$f":"IF('DV Readings'!$C$56=\"\",\"\",'DV Readings'!$C$56)","v":1}]
[228,{"$f":"IF('DV Readings'!$D$64=\"\",\"\",'DV Readings'!$D$64)","v":""},"TUBE SUCTION TEST: DV READINGS","Report - Specimen # 3","Day No.",8,"Reading",{"$f":"IF('DV Readings'!$D$56=\"\",\"\",'DV Readings'!$D$56)","v":2}]
[229,{"$f":"IF('DV Readings'!$E$64=\"\",\"\",'DV Readings'!$E$64)","v":""},"TUBE SUCTION TEST: DV READINGS","Report - Specimen # 3","Day No.",8,"Reading",{"$f":"IF('DV Readings'!$E$56=\"\",\"\",'DV Readings'!$E$56)","v":3}]
[230,{"$f":"IF('DV Readings'!$F$64=\"\",\"\",'DV Readings'!$F$64)","v":""},"TUBE SUCTION TEST: DV READINGS","Report - Specimen # 3","Day No.",8,"Reading",{"$f":"IF('DV Readings'!$F$56=\"\",\"\",'DV Readings'!$F$56)","v":4}]
[231,{"$f":"IF('DV Readings'!$G$64=\"\",\"\",'DV Readings'!$G$64)","v":""},"TUBE SUCTION TEST: DV READINGS","Report - Specimen # 3","Day No.",8,"Reading",{"$f":"IF('DV Readings'!$G$56=\"\",\"\",'DV Readings'!$G$56)","v":5}]
[232,{"$f":"IF('DV Readings'!$H$64=\"\",\"\",'DV Readings'!$H$64)","v":""},"TUBE SUCTION TEST: DV READINGS","Report - Specimen # 3","Day No.",8,"Average"]
[233,{"$f":"IF('DV Readings'!$C$65=\"\",\"\",'DV Readings'!$C$65)","v":""},"TUBE SUCTION TEST: DV READINGS","Report - Specimen # 3","Day No.",9,"Reading",{"$f":"IF('DV Readings'!$C$56=\"\",\"\",'DV Readings'!$C$56)","v":1}]
[234,{"$f":"IF('DV Readings'!$D$65=\"\",\"\",'DV Readings'!$D$65)","v":""},"TUBE SUCTION TEST: DV READINGS","Report - Specimen # 3","Day No.",9,"Reading",{"$f":"IF('DV Readings'!$D$56=\"\",\"\",'DV Readings'!$D$56)","v":2}]
[235,{"$f":"IF('DV Readings'!$E$65=\"\",\"\",'DV Readings'!$E$65)","v":""},"TUBE SUCTION TEST: DV READINGS","Report - Specimen # 3","Day No.",9,"Reading",{"$f":"IF('DV Readings'!$E$56=\"\",\"\",'DV Readings'!$E$56)","v":3}]
[236,{"$f":"IF('DV Readings'!$F$65=\"\",\"\",'DV Readings'!$F$65)","v":""},"TUBE SUCTION TEST: DV READINGS","Report - Specimen # 3","Day No.",9,"Reading",{"$f":"IF('DV Readings'!$F$56=\"\",\"\",'DV Readings'!$F$56)","v":4}]
[237,{"$f":"IF('DV Readings'!$G$65=\"\",\"\",'DV Readings'!$G$65)","v":""},"TUBE SUCTION TEST: DV READINGS","Report - Specimen # 3","Day No.",9,"Reading",{"$f":"IF('DV Readings'!$G$56=\"\",\"\",'DV Readings'!$G$56)","v":5}]
[238,{"$f":"IF('DV Readings'!$H$65=\"\",\"\",'DV Readings'!$H$65)","v":""},"TUBE SUCTION TEST: DV READINGS","Report - Specimen # 3","Day No.",9,"Average"]
[239,{"$f":"IF('DV Readings'!$C$66=\"\",\"\",'DV Readings'!$C$66)","v":""},"TUBE SUCTION TEST: DV READINGS","Report - Specimen # 3","Day No.",10,"Reading",{"$f":"IF('DV Readings'!$C$56=\"\",\"\",'DV Readings'!$C$56)","v":1}]
[240,{"$f":"IF('DV Readings'!$D$66=\"\",\"\",'DV Readings'!$D$66)","v":""},"TUBE SUCTION TEST: DV READINGS","Report - Specimen # 3","Day No.",10,"Reading",{"$f":"IF('DV Readings'!$D$56=\"\",\"\",'DV Readings'!$D$56)","v":2}]
[241,{"$f":"IF('DV Readings'!$E$66=\"\",\"\",'DV Readings'!$E$66)","v":""},"TUBE SUCTION TEST: DV READINGS","Report - Specimen # 3","Day No.",10,"Reading",{"$f":"IF('DV Readings'!$E$56=\"\",\"\",'DV Readings'!$E$56)","v":3}]
[242,{"$f":"IF('DV Readings'!$F$66=\"\",\"\",'DV Readings'!$F$66)","v":""},"TUBE SUCTION TEST: DV READINGS","Report - Specimen # 3","Day No.",10,"Reading",{"$f":"IF('DV Readings'!$F$56=\"\",\"\",'DV Readings'!$F$56)","v":4}]
[243,{"$f":"IF('DV Readings'!$G$66=\"\",\"\",'DV Readings'!$G$66)","v":""},"TUBE SUCTION TEST: DV READINGS","Report - Specimen # 3","Day No.",10,"Reading",{"$f":"IF('DV Readings'!$G$56=\"\",\"\",'DV Readings'!$G$56)","v":5}]
[244,{"$f":"IF('DV Readings'!$H$66=\"\",\"\",'DV Readings'!$H$66)","v":""},"TUBE SUCTION TEST: DV READINGS","Report - Specimen # 3","Day No.",10,"Average"]
[245,{"$f":"IF('DV Readings'!$H$67=\"\",\"\",'DV Readings'!$H$67)","v":""},"TUBE SUCTION TEST: DV READINGS","Report - Specimen # 3",{"$f":"IF('DV Readings'!$H$55=\"\",\"\",'DV Readings'!$H$55)","v":"Average"}]
[246,{"$f":"IF(TestPerson2=\"\",\"\",TestPerson2)","v":""},{"$f":"'Compaction Info'!C50","v":"Sampled By:"},{"$f":"Test2","v":"TX400"}]
[247,{"$f":"IF(TestDate2=\"\",\"\",TestDate2)","v":""},{"$f":"'Compaction Info'!F50","v":"Sampled Date:"},{"$f":"Test2","v":"TX400"}]

{"sheet":"Revisions","index":5,"n_rows":9,"n_cols":3,"rows_kept":9,"cut":false,"hidden":true,"merged":[]}
["Date","Comment","By"]
["2018-08-15","Removed prefilled cells; these cells will now be populated \nas the form is being populated by the user","CTIS"]
["2018-08-15","There are cells that show ‘#N/A’ so that graphs are not\n misinterpreted; these values were appearing in the RX sheet. This issue has been fixed.","CTIS"]
["2018-08-15","Print areas have been set, colors were removed from hidden sheets","CTIS"]
["2018-08-15","I restored the hidden variables (‘UPLC’, ‘SN’, ‘DLT’) that were in \nthe blank template but I’m not sure what the values for these variables should be and if they should be present in every single sheet","CTIS"]
["2018-08-28","Added spec drop down list","CTIS"]
["2018-08-28","Removed IFNA function as that one doesn't work with older versions of Excel","CTIS"]
["2018-10-04","Removed ocurrences of IFNA to 'IF(ISNA())' from RX sheet","CTIS"]
["2018-10-04","Removed ocurrences of NA() to '#N/A' from DV Reading sheet","CTIS"]